fUST/lending_fUST_20250806
["ID","MTS","AMOUNT","RATE_DAILY","PERIOD"]
[377488014,1754427072017,-1335.72,0.0003041,2]
[377488015,1754427072026,-1686.93,0.0003041,2]
[377488016,1754427072035,-460.0,0.0003041,2]
[377488017,1754427072044,-1894.52,0.0003041,2]
[377488018,1754427072053,-460.0,0.0003041,2]
[377488019,1754427072063,-655.64,0.0003041,2]
[377488020,1754427072072,-460.0,0.0003041,2]
[377488021,1754427072082,-659.36,0.0003041,2]
[377488022,1754427072092,-460.0,0.0003041,2]
[377488023,1754427072102,-973.04,0.0003041,2]
[377488024,1754427072112,-241.14,0.00030416,15]
[377488025,1754427072122,-650.63509,0.00030434,2]
[377488026,1754427072133,-228.47,0.00030439,15]
[377488027,1754427072151,-152.0,0.00030442,15]
[377488028,1754427072164,-152.26,0.00030458,15]
[377488029,1754427072173,-151.0,0.00030485,7]
[377488030,1754427072182,-151.0,0.00030485,7]
[377488031,1754427072191,-151.0,0.00030485,7]
[377488032,1754427072201,-151.0,0.00030485,7]
[377488033,1754427072211,-1055.55,0.000305,2]
[377488034,1754427072220,-151.0,0.000305,7]
[377488035,1754427072230,-241.14,0.00030516,15]
[377488036,1754427072241,-151.2598,0.0003052,2]
[377488037,1754427072250,-228.47,0.00030539,15]
[377488038,1754427072260,-152.0,0.00030542,15]
[377488039,1754427072270,-152.26,0.00030558,15]
[377488040,1754427072280,-241.14,0.00030616,15]
[377488041,1754427072290,-228.47,0.00030639,15]
[377488042,1754427072299,-152.0,0.00030642,15]
[377488043,1754427072309,-152.26,0.00030658,15]
[377488044,1754427072321,-320.64368534,0.0003066,5]
[377488045,1754427072330,-823.0,0.00030663,2]
[377488046,1754427072341,-460.0,0.00030684,2]
[377488047,1754427072351,-518.68,0.00030684,2]
[377488048,1754427072361,-522.68,0.00030684,2]
[377488049,1754427072370,-460.0,0.00030684,2]
[377488050,1754427072379,-532.24,0.00030684,2]
[377488051,1754427072392,-467.64707366,0.00030684,2]
[377488052,1754427072402,-1254.3,0.00030684,2]
[377488053,1754427072412,-649.75,0.00030684,2]
[377488054,1754427072422,-460.0,0.00030684,2]
[377488055,1754427072431,-1403.94,0.00030684,2]
[377488056,1754427072440,-460.0,0.00030684,2]
[377488057,1754427072450,-187.8,0.00030684,2]
[377488058,1754427072461,-811.93,0.00030684,2]
[377488059,1754427072471,-1775.82,0.00030684,2]
[377488060,1754427072481,-468.23,0.00030684,2]
[377488061,1754427072492,-460.0,0.00030684,2]
[377488062,1754427072501,-460.0,0.00030684,2]
[377488063,1754427072513,-460.0,0.00030684,2]
[377488064,1754427072523,-1472.16,0.00030684,2]
[377488065,1754427072533,-460.0,0.00030684,2]
[377488066,1754427072543,-2484.66,0.00030684,2]
[377488067,1754427072556,-2393.83,0.00030684,2]
[377488068,1754427072566,-502.01,0.00030684,2]
[377488069,1754427072575,-1077.28,0.00030684,2]
[377488070,1754427072584,-70513.24,0.00030684,2]
[377488071,1754427072595,-1431.97,0.00030684,2]
[377488072,1754427072606,-915.89,0.00030684,2]
[377488073,1754427072616,-1250.29,0.00030684,2]
[377488074,1754427072626,-460.0,0.00030684,2]
[377488075,1754427072637,-460.0,0.00030684,2]
[377488076,1754427072647,-460.0,0.00030684,2]
[377488077,1754427072657,-606.84,0.00030684,2]
[377488078,1754427072666,-1028.3,0.00030684,2]
[377488079,1754427072676,-914.04,0.00030684,2]
[377488080,1754427072686,-841.56,0.00030684,2]
[377488081,1754427072695,-460.0,0.00030684,2]
[377488082,1754427072704,-1593.91,0.00030684,2]
[377488083,1754427072715,-2254.97,0.00030684,2]
[377488084,1754427072724,-460.0,0.00030684,2]
[377488085,1754427072735,-460.0,0.00030684,2]
[377488086,1754427072744,-1438.56,0.00030684,2]
[377488087,1754427072754,-774.78,0.00030684,2]
[377488088,1754427072764,-1081.48,0.00030684,2]
[377488089,1754427072773,-1425.2,0.00030684,2]
[377488090,1754427072783,-868.91,0.00030684,2]
[377488091,1754427072793,-503.74,0.00030684,2]
[377488092,1754427072802,-500.0,0.00030684,2]
[377488093,1754427072811,-1264.81,0.00030684,2]
[377488094,1754427072822,-5004.65,0.00030684,2]
[377488095,1754427072832,-5873.66,0.00030684,2]
[377488096,1754427072842,-474.11948639,0.00030684,2]
[377488097,1754427072852,-1295.15,0.00030684,2]
[377488098,1754427072861,-460.0,0.00030684,2]
[377488099,1754427072870,-1259.02,0.00030684,2]
[377488100,1754427072879,-513.53,0.00030684,2]
[377488101,1754427072888,-460.0,0.00030684,2]
[377488102,1754427072898,-460.0,0.00030684,2]
[377488103,1754427072908,-460.0,0.00030684,2]
[377488104,1754427072918,-460.0,0.00030684,2]
[377488105,1754427072928,-2544.7,0.00030684,2]
[377488106,1754427072938,-460.0,0.00030684,2]
[377488107,1754427072948,-1659.54,0.00030684,2]
[377488108,1754427072958,-859.85,0.00030684,2]
[377488109,1754427072967,-751.14,0.00030684,2]
[377488110,1754427072978,-1847.96,0.00030684,2]
[377488111,1754427072988,-460.0,0.00030684,2]
[377488112,1754427072997,-478.49,0.00030684,2]
[377488113,1754427073007,-6456.97,0.00030684,2]
[377488114,1754427073016,-464.84,0.00030684,2]
[377488115,1754427073026,-2913.77,0.00030684,2]
[377488116,1754427073035,-643.1,0.00030684,2]
[377488117,1754427073045,-822.24,0.00030684,2]
[377488118,1754427073055,-673.92,0.00030684,2]
[377488119,1754427073064,-460.0,0.00030684,2]
[377488120,1754427073074,-460.0,0.00030684,2]
[377488121,1754427073084,-460.0,0.00030684,2]
[377488122,1754427073094,-1205.26,0.00030684,2]
[377488123,1754427073103,-1686.93,0.00030684,2]
[377488124,1754427073113,-1335.72,0.00030684,2]
[377488125,1754427073122,-460.0,0.00030684,2]
[377488126,1754427073133,-1894.52,0.00030684,2]
[377488127,1754427073143,-516.52770387,0.00030684,2]
[377488128,1754427073153,-655.64,0.00030684,2]
[377488129,1754427073162,-460.0,0.00030684,2]
[377488130,1754427073181,-659.36,0.00030684,2]
[377488131,1754427073192,-460.0,0.00030684,2]
[377488132,1754427073202,-1000.0,0.000307,6]
[377488133,1754427073211,-241.14,0.00030716,15]
[377488134,1754427073221,-228.47,0.00030739,15]
[377488135,1754427073231,-152.0,0.00030742,15]
[377488136,1754427073240,-152.26,0.00030758,15]
[377488137,1754427073249,-241.14,0.00030816,15]
[377488138,1754427073259,-228.47,0.00030839,15]
[377488139,1754427073268,-152.0,0.00030842,15]
[377488140,1754427073277,-430.7234783,0.00030855,30]
[377488141,1754427073287,-152.26,0.00030858,15]
[377488142,1754427073297,-241.14,0.00030916,15]
[377488143,1754427073306,-990.0,0.00030924,7]
[377488144,1754427073316,-228.47,0.00030939,15]
[377488145,1754427073325,-152.0,0.00030942,15]
[377488146,1754427073335,-660.0,0.0003095,2]
[377488147,1754427073344,-460.0,0.00030958,2]
[377488148,1754427073354,-518.68,0.00030958,2]
[377488149,1754427073364,-522.68,0.00030958,2]
[377488150,1754427073374,-460.0,0.00030958,2]
[377488151,1754427073384,-532.24,0.00030958,2]
[377488152,1754427073394,-1254.3,0.00030958,2]
[377488153,1754427073403,-649.75,0.00030958,2]
[377488154,1754427073414,-460.0,0.00030958,2]
[377488155,1754427073424,-1403.94,0.00030958,2]
[377488156,1754427073434,-460.0,0.00030958,2]
[377488157,1754427073444,-811.93,0.00030958,2]
[377488158,1754427073454,-1775.82,0.00030958,2]
[377488159,1754427073463,-468.23,0.00030958,2]
[377488160,1754427073472,-460.0,0.00030958,2]
[377488161,1754427073483,-460.0,0.00030958,2]
[377488162,1754427073492,-1472.16,0.00030958,2]
[377488163,1754427073502,-297.89146792,0.00030958,2]
[377488164,1754427073511,-2484.66,0.00030958,2]
[377488165,1754427073520,-2393.83,0.00030958,2]
[377488166,1754427073529,-502.01,0.00030958,2]
[377488167,1754427073538,-1077.28,0.00030958,2]
[377488168,1754427073547,-70513.24,0.00030958,2]
[377488169,1754427073560,-1431.97,0.00030958,2]
[377488170,1754427073569,-915.89,0.00030958,2]
[377488171,1754427073579,-1250.29,0.00030958,2]
[377488172,1754427073589,-460.0,0.00030958,2]
[377488173,1754427073600,-479.96708318,0.00030958,2]
[377488174,1754427073609,-460.0,0.00030958,2]
[377488175,1754427073619,-606.84,0.00030958,2]
[377488176,1754427073630,-1028.3,0.00030958,2]
[377488177,1754427073639,-914.04,0.00030958,2]
[377488178,1754427073649,-841.56,0.00030958,2]
[377488179,1754427073658,-460.0,0.00030958,2]
[377488180,1754427073667,-1593.91,0.00030958,2]
[377488181,1754427073676,-2254.97,0.00030958,2]
[377488182,1754427073686,-460.0,0.00030958,2]
[377488183,1754427073696,-429.62078725,0.00030958,2]
[377488184,1754427073705,-1438.56,0.00030958,2]
[377488185,1754427073715,-774.78,0.00030958,2]
[377488186,1754427073725,-151.0,0.00030958,7]
[377488187,1754427073734,-1081.48,0.00030958,2]
[377488188,1754427073744,-1425.2,0.00030958,2]
[377488189,1754427073753,-868.91,0.00030958,2]
[377488190,1754427073763,-503.74,0.00030958,2]
[377488191,1754427073773,-500.0,0.00030958,2]
[377488192,1754427073783,-1264.81,0.00030958,2]
[377488193,1754427073792,-5004.65,0.00030958,2]
[377488194,1754427073803,-5873.66,0.00030958,2]
[377488195,1754427073816,-151.0,0.00030958,7]
[377488196,1754427073826,-1295.15,0.00030958,2]
[377488197,1754427073835,-460.0,0.00030958,2]
[377488198,1754427073844,-1259.02,0.00030958,2]
[377488199,1754427073854,-513.53,0.00030958,2]
[377488200,1754427073865,-460.0,0.00030958,2]
[377488201,1754427073874,-175.93159362,0.00030958,2]
[377488202,1754427073884,-497.333361,0.00030958,7]
[377488203,1754427073893,-460.0,0.00030958,2]
[377488204,1754427073903,-497.333361,0.00030958,7]
[377488205,1754427073912,-460.0,0.00030958,2]
[377488206,1754427073922,-2544.7,0.00030958,2]
[377488207,1754427073931,-1712.627473,0.00030958,7]
[377488208,1754427073942,-1712.627473,0.00030958,7]
[377488209,1754427073951,-151.0,0.00030958,7]
[377488210,1754427073961,-460.0,0.00030958,2]
[377488211,1754427073970,-1659.54,0.00030958,2]
[377488212,1754427073979,-859.85,0.00030958,2]
[377488213,1754427073989,-751.14,0.00030958,2]
[377488214,1754427073999,-151.0,0.00030958,7]
[377488215,1754427074008,-1847.96,0.00030958,2]
[377488216,1754427074018,-453.48631578,0.00030958,2]
[377488217,1754427074027,-478.49,0.00030958,2]
[377488218,1754427074037,-6456.97,0.00030958,2]
[377488219,1754427074046,-464.84,0.00030958,2]
[377488220,1754427074056,-2913.77,0.00030958,2]
[377488221,1754427074065,-643.1,0.00030958,2]
[377488222,1754427074074,-822.24,0.00030958,2]
[377488223,1754427074084,-673.92,0.00030958,2]
[377488224,1754427074093,-460.0,0.00030958,2]
[377488225,1754427074102,-460.0,0.00030958,2]
[377488226,1754427074112,-460.0,0.00030958,2]
[377488227,1754427074121,-1205.26,0.00030958,2]
[377488228,1754427074131,-1686.93,0.00030958,2]
[377488229,1754427074140,-1335.72,0.00030958,2]
[377488230,1754427074149,-460.0,0.00030958,2]
[377488231,1754427074159,-1894.52,0.00030958,2]
[377488232,1754427074168,-655.64,0.00030958,2]
[377488233,1754427074177,-460.0,0.00030958,2]
[377488234,1754427074187,-659.36,0.00030958,2]
[377488235,1754427074196,-460.0,0.00030958,2]
[377488236,1754427074206,-152.26,0.00030958,15]
[377488237,1754427074215,-302.18020451,0.0003099,2]
[377488238,1754427074224,-10000.3547559,0.00031,5]
[377488239,1754427074234,-420.23015566,0.00031,120]
[377488240,1754427074244,-160.0,0.00031,7]
[377488241,1754427074255,-216.4206905,0.00031,7]
[377488242,1754427074265,-312.16666667,0.00031,7]
[377488243,1754427074276,-842.25606042,0.00031,7]
[377488244,1754427074286,-241.14,0.00031016,15]
[377488245,1754427074295,-600.0,0.00031032,2]
[377488246,1754427074305,-228.47,0.00031039,15]
[377488247,1754427074316,-152.0,0.00031042,15]
[377488248,1754427074326,-152.26,0.00031058,15]
[377488249,1754427074336,-2927.0,0.00031086,3]
[377488250,1754427074346,-5016.01994328,0.00031107,15]
[377488251,1754427074534,-600.0,0.00031107,2]
[377488252,1754427074544,-241.14,0.00031116,15]
[377488253,1754427074557,-918.83257853,0.00031122,26]
[377488254,1754427074567,-228.47,0.00031139,15]
[377488255,1754427074576,-152.0,0.00031142,15]
[377488256,1754427074586,-152.26,0.00031158,15]
[377488257,1754427074596,-600.0,0.00031181,2]
[377488258,1754427074605,-1000.0,0.000312,6]
[377488259,1754427074615,-241.14,0.00031216,15]
[377488260,1754427074624,-460.0,0.00031232,2]
[377488261,1754427074634,-518.68,0.00031232,2]
[377488262,1754427074644,-522.68,0.00031232,2]
[377488263,1754427074654,-460.0,0.00031232,2]
[377488264,1754427074664,-532.24,0.00031232,2]
[377488265,1754427074674,-1254.3,0.00031232,2]
[377488266,1754427074684,-649.75,0.00031232,2]
[377488267,1754427074695,-460.0,0.00031232,2]
[377488268,1754427074704,-1403.94,0.00031232,2]
[377488269,1754427074715,-460.0,0.00031232,2]
[377488270,1754427074725,-811.93,0.00031232,2]
[377488271,1754427074735,-1775.82,0.00031232,2]
[377488272,1754427074746,-468.23,0.00031232,2]
[377488273,1754427074755,-460.0,0.00031232,2]
[377488274,1754427074766,-151.0,0.00031232,7]
[377488275,1754427074777,-460.0,0.00031232,2]
[377488276,1754427074788,-1472.16,0.00031232,2]
[377488277,1754427074798,-151.0,0.00031232,7]
[377488278,1754427074808,-2484.66,0.00031232,2]
[377488279,1754427074818,-151.0,0.00031232,7]
[377488280,1754427074827,-2393.83,0.00031232,2]
[377488281,1754427074837,-502.01,0.00031232,2]
[377488282,1754427074846,-1077.28,0.00031232,2]
[377488283,1754427074856,-70513.24,0.00031232,2]
[377488284,1754427074865,-1431.97,0.00031232,2]
[377488285,1754427074874,-915.89,0.00031232,2]
[377488286,1754427074883,-1250.29,0.00031232,2]
[377488287,1754427074892,-460.0,0.00031232,2]
[377488288,1754427074903,-464.37827835,0.00031232,2]
[377488289,1754427074913,-606.84,0.00031232,2]
[377488290,1754427074923,-1028.3,0.00031232,2]
[377488291,1754427074933,-914.04,0.00031232,2]
[377488292,1754427074942,-841.56,0.00031232,2]
[377488293,1754427074952,-460.0,0.00031232,2]
[377488294,1754427074961,-1593.91,0.00031232,2]
[377488295,1754427074971,-2254.97,0.00031232,2]
[377488296,1754427074980,-460.0,0.00031232,2]
[377488297,1754427074990,-307.095709,0.00031232,7]
[377488298,1754427075000,-307.095709,0.00031232,7]
[377488299,1754427075010,-774.78,0.00031232,2]
[377488300,1754427075019,-1438.56,0.00031232,2]
[377488301,1754427075029,-1081.48,0.00031232,2]
[377488302,1754427075039,-158.487474,0.00031232,7]
[377488303,1754427075049,-158.487474,0.00031232,7]
[377488304,1754427075058,-1425.2,0.00031232,2]
[377488305,1754427075068,-868.91,0.00031232,2]
[377488306,1754427075079,-503.74,0.00031232,2]
[377488307,1754427075089,-1264.81,0.00031232,2]
[377488308,1754427075099,-5004.65,0.00031232,2]
[377488309,1754427075117,-5873.66,0.00031232,2]
[377488310,1754427075130,-1295.15,0.00031232,2]
[377488311,1754427075140,-460.0,0.00031232,2]
[377488312,1754427075150,-1259.02,0.00031232,2]
[377488313,1754427075160,-513.53,0.00031232,2]
[377488314,1754427075170,-460.0,0.00031232,2]
[377488315,1754427075180,-460.0,0.00031232,2]
[377488316,1754427075189,-220.05813634,0.00031232,2]
[377488317,1754427075200,-2544.7,0.00031232,2]
[377488318,1754427075210,-460.0,0.00031232,2]
[377488319,1754427075220,-1659.54,0.00031232,2]
[377488320,1754427075230,-859.85,0.00031232,2]
[377488321,1754427075241,-751.14,0.00031232,2]
[377488322,1754427075251,-1847.96,0.00031232,2]
[377488323,1754427075261,-478.49,0.00031232,2]
[377488324,1754427075272,-6456.97,0.00031232,2]
[377488325,1754427075283,-464.84,0.00031232,2]
[377488326,1754427075295,-2913.77,0.00031232,2]
[377488327,1754427075305,-643.1,0.00031232,2]
[377488328,1754427075315,-822.24,0.00031232,2]
[377488329,1754427075324,-673.92,0.00031232,2]
[377488330,1754427075334,-460.0,0.00031232,2]
[377488331,1754427075344,-460.0,0.00031232,2]
[377488332,1754427075354,-460.0,0.00031232,2]
[377488333,1754427075363,-1205.26,0.00031232,2]
[377488334,1754427075373,-1335.72,0.00031232,2]
[377488335,1754427075383,-1686.93,0.00031232,2]
[377488336,1754427075394,-407.19740476,0.00031232,2]
[377488337,1754427075404,-1894.52,0.00031232,2]
[377488338,1754427075413,-655.64,0.00031232,2]
[377488339,1754427075423,-460.0,0.00031232,2]
[377488340,1754427075433,-659.36,0.00031232,2]
[377488341,1754427075444,-460.0,0.00031232,2]
[377488342,1754427075453,-228.47,0.00031239,15]
[377488343,1754427075463,-152.0,0.00031242,15]
[377488344,1754427075472,-172.265075,0.00031255,7]
[377488345,1754427075481,-151.0,0.00031255,7]
[377488346,1754427075492,-175.0,0.00031255,7]
[377488347,1754427075501,-175.0,0.00031255,7]
[377488348,1754427075510,-151.0,0.00031255,7]
[377488349,1754427075520,-151.0,0.00031255,7]
[377488350,1754427075529,-151.0,0.00031255,7]
[377488351,1754427075538,-304.206725,0.00031255,7]
[377488352,1754427075547,-304.206725,0.00031255,7]
[377488353,1754427075560,-304.206725,0.00031255,7]
[377488354,1754427075570,-304.206725,0.00031255,7]
[377488355,1754427075579,-158.487474,0.00031255,7]
[377488356,1754427075589,-158.487474,0.00031255,7]
[377488357,1754427075598,-374.555493,0.00031255,7]
[377488358,1754427075607,-374.555493,0.00031255,7]
[377488359,1754427075616,-374.555493,0.00031255,7]
[377488360,1754427075626,-374.555493,0.00031255,7]
[377488361,1754427075638,-152.26,0.00031258,15]
[377488362,1754427075648,-151.0,0.00031272,7]
[377488363,1754427075659,-433.916028,0.00031272,7]
[377488364,1754427075668,-433.916028,0.00031272,7]
[377488365,1754427075677,-151.0,0.00031272,7]
[377488366,1754427075687,-151.0,0.00031272,7]
[377488367,1754427075697,-151.0,0.00031272,7]
[377488368,1754427075706,-151.0,0.00031272,7]
[377488369,1754427075715,-419.700864,0.00031272,7]
[377488370,1754427075725,-419.700864,0.00031272,7]
[377488371,1754427075735,-151.0,0.00031279,7]
[377488372,1754427075746,-151.0,0.00031279,7]
[377488373,1754427075755,-307.095709,0.00031279,7]
[377488374,1754427075764,-307.095709,0.00031279,7]
[377488375,1754427075774,-157.705103,0.00031279,7]
[377488376,1754427075785,-151.0,0.00031279,7]
[377488377,1754427075795,-497.333361,0.00031279,7]
[377488378,1754427075804,-497.333361,0.00031279,7]
[377488379,1754427075814,-1712.627473,0.00031279,7]
[377488380,1754427075823,-1712.627473,0.00031279,7]
[377488381,1754427075832,-151.0,0.00031279,7]
[377488382,1754427075843,-151.0,0.00031279,7]
[377488383,1754427075852,-157.340175,0.00031281,7]
[377488384,1754427075863,-152.047209,0.00031281,7]
[377488385,1754427075872,-151.0,0.00031281,7]
[377488386,1754427075882,-151.0,0.00031281,7]
[377488387,1754427075891,-151.0,0.00031281,7]
[377488388,1754427075901,-151.0,0.00031281,7]
[377488389,1754427075910,-151.0,0.00031281,7]
[377488390,1754427075919,-151.0,0.00031281,7]
[377488391,1754427075929,-362.188477,0.00031281,7]
[377488392,1754427075939,-151.0,0.00031285,7]
[377488393,1754427075948,-151.0,0.00031285,7]
[377488394,1754427075958,-151.0,0.00031285,7]
[377488395,1754427075967,-151.0,0.00031285,7]
[377488396,1754427075976,-151.0,0.00031285,7]
[377488397,1754427075986,-151.0,0.00031285,7]
[377488398,1754427075996,-151.0,0.00031285,7]
[377488399,1754427076006,-151.0,0.00031285,7]
[377488400,1754427076015,-964.554338,0.00031285,7]
[377488401,1754427076025,-964.554338,0.00031285,7]
[377488402,1754427076034,-964.554338,0.00031285,7]
[377488403,1754427076045,-964.554338,0.00031285,7]
[377488404,1754427076055,-151.0,0.00031285,7]
[377488405,1754427076064,-151.0,0.00031285,7]
[377488406,1754427076073,-224.505427,0.00031285,7]
[377488407,1754427076084,-224.505427,0.00031285,7]
[377488408,1754427076095,-224.505427,0.00031285,7]
[377488409,1754427076104,-224.505427,0.00031285,7]
[377488410,1754427076113,-151.0,0.00031292,7]
[377488411,1754427076123,-151.0,0.00031292,7]
[377488412,1754427076132,-151.0,0.00031294,7]
[377488413,1754427076141,-151.0,0.00031294,7]
[377488414,1754427076151,-151.0,0.00031294,7]
[377488415,1754427076160,-151.0,0.00031294,7]
[377488416,1754427076170,-283.22179,0.000313,20]
[377488417,1754427076179,-151.0,0.00031302,7]
[377488418,1754427076188,-151.0,0.00031302,7]
[377488419,1754427076198,-501.481281,0.00031302,7]
[377488420,1754427076207,-501.481281,0.00031302,7]
[377488421,1754427076217,-151.0,0.00031302,7]
[377488422,1754427076227,-151.0,0.00031302,7]
[377488423,1754427076236,-150.0,0.00031303,2]
[377488424,1754427076246,-16814.48501135,0.00031303,20]
[377488425,1754427077890,4730.68056275,0.000252,8]
[377488426,1754427082188,5000.0,0.000252,8]
[377488427,1754427093764,5000.0,0.000252,8]
[377488428,1754427111866,5000.0,0.000252,8]
[377488429,1754427119747,169.53189435,0.00023946,2]
[377488430,1754427127546,4264.44322295,0.000252,8]
[377488431,1754427315364,5000.0,0.0002512,6]
[377488432,1754427330460,735.55677705,0.0002512,6]
[377488433,1754427477403,183.29688319,0.0003005,120]
[377488434,1754427573019,434.407454,0.00023631,2]
[377488440,1754427671522,2294.8110303,0.0002347,2]
[377488468,1754427753859,164.71783836,0.00023978,2]
[377488469,1754427972841,6413.04799417,0.00023415,2]
[377488470,1754427972864,17500.0,0.00023415,2]
[377488471,1754427972887,986.95200583,0.00023415,2]
[377488473,1754427987071,477.95615,0.00013699,2]
[377488474,1754427987275,477.95615,0.00020187,2]
[377488475,1754427990648,5000.0,0.0002512,6]
[377488476,1754428006927,5000.0,0.0002512,6]
[377488477,1754428009042,214.8374912,0.00023415,2]
[377488478,1754428022087,5000.0,0.0002512,6]
[377488570,1754428037344,5000.0,0.0002512,6]
[377488666,1754428053531,4057.03241704,0.0002512,6]
[377488700,1754428076365,200.15,0.00024033,2]
[377488701,1754428121944,153.785389,0.00023357,2]
[377488702,1754428123926,174.616816,0.00023357,2]
[377488703,1754428125221,249.50802812,0.00023358,2]
[377488706,1754428189945,1818.26871859,0.0002302,2]
[377488708,1754428218457,1027.26653142,0.00025,10]
[377488742,1754428231906,-300.0,0.00024077,2]
[377488744,1754428231918,-1200.0,0.00024077,2]
[377488746,1754428231927,-1200.0,0.00024078,2]
[377488748,1754428231936,-229.5603998,0.00024078,2]
[377488754,1754428232015,-7.0999219,0.00024078,2]
[377488756,1754428232024,-500.0,0.00024078,2]
[377488758,1754428232034,-447.62141093,0.00024078,2]
[377488760,1754428232045,-500.0,0.00024078,2]
[377488762,1754428232054,-500.0,0.00024078,2]
[377488764,1754428232064,-500.0,0.00024078,2]
[377488766,1754428232073,-252.53890137,0.00024078,2]
[377488768,1754428232082,-152.70224555,0.00024078,2]
[377488770,1754428232091,-158.90746399,0.00024078,2]
[377488772,1754428232101,-214.72890054,0.00024078,2]
[377488774,1754428232110,-500.0,0.00024078,2]
[377488776,1754428232123,-500.0,0.00024078,2]
[377488778,1754428232132,-500.0,0.00024079,2]
[377488780,1754428232141,-500.0,0.00024079,2]
[377488782,1754428232153,-500.0,0.00024079,2]
[377488784,1754428232163,-500.0,0.00024079,2]
[377488786,1754428232173,-500.0,0.00024079,2]
[377488788,1754428232182,-500.0,0.00024079,2]
[377488790,1754428232195,-500.0,0.00024079,2]
[377488792,1754428232204,-500.0,0.00024079,2]
[377488794,1754428232221,-500.0,0.00024079,2]
[377488796,1754428232238,-160.0,0.0002408,2]
[377488798,1754428232248,-618.19712065,0.0002408,2]
[377488944,1754428237847,-9381.80287935,0.0002408,2]
[377488946,1754428237857,-14070.0391545,0.00024241,2]
[377488948,1754428237867,-380.0,0.00024658,2]
[377488950,1754428237876,-504.12199489,0.00024873,2]
[377488952,1754428237886,-500.0,0.00024873,2]
[377488954,1754428237896,-599.83262584,0.00024873,2]
[377488956,1754428237905,-500.0,0.00024873,2]
[377488958,1754428237914,-190.94542455,0.00024873,2]
[377488960,1754428237923,-370000.0,0.0002489,2]
[377488962,1754428237933,-35748.0333258,0.000249,2]
[377488964,1754428237942,-150.0,0.00025127,2]
[377488966,1754428237951,-1000.0,0.00025325,2]
[377488968,1754428237960,-364.12706999,0.00025421,2]
[377488970,1754428237970,-1000.0,0.00025421,2]
[377488972,1754428237979,-157.203,0.00025643,10]
[377488974,1754428237988,-1000.0,0.00025968,2]
[377488976,1754428237998,-819.069595,0.00026039,2]
[377488978,1754428238007,-420.0,0.00026108,2]
[377488980,1754428238017,-1113.0,0.00026109,2]
[377488982,1754428238026,-1680.0,0.00026228,2]
[377488984,1754428238035,-200.0,0.00026486,15]
[377488986,1754428238045,-300.0,0.00026486,15]
[377488988,1754428238054,-477.95615,0.00026676,2]
[377488990,1754428238063,-600.0,0.00026696,2]
[377488992,1754428238072,-171.73,0.00026696,2]
[377488994,1754428238081,-434.407454,0.00027056,2]
[377488996,1754428238091,-5106.86190368,0.00027363,2]
[377488998,1754428238100,-501.80727516,0.00027373,2]
[377489000,1754428238109,-500.0,0.00027373,2]
[377489002,1754428238119,-500.0,0.00027373,2]
[377489004,1754428238133,-500.0,0.00027373,2]
[377489006,1754428238142,-500.0,0.00027373,2]
[377489008,1754428238152,-500.0,0.00027373,2]